[Event "Titled Tuesday Blitz June 29 2021"]
[White "VladDobrov"]
[Black "Mr_Sinigami"]
[WhiteElo "2783"]
[BlackElo "2613"]
[Result "1-0"]
[Round "05"]
[TimeControl "180+1"]
[Date "2021.06.29"]
[WhiteClock "0:00:27"]
[BlackClock "0:00:10"]

1. d4 {[%clk 0:03:00]}  Nf6 {[%clk 0:02:59]} 2. c4 {[%clk 0:03:00]}  g6 {[%clk 0:02:59]} 3. g3 {[%clk 0:02:57]}  Bg7 {[%clk 0:02:59]} 4. Bg2 {[%clk 0:02:57]}  O-O {[%clk 0:02:59]} 5. Nc3 {[%clk 0:02:57]}  d6 {[%clk 0:02:59]} 6. Nf3 {[%clk 0:02:58]}  Nbd7 {[%clk 0:02:59]} 7. O-O {[%clk 0:02:58]}  e5 {[%clk 0:02:58]} 8. h3 {[%clk 0:02:58]}  Re8 {[%clk 0:02:51]} 9. e4 {[%clk 0:02:58]}  exd4 {[%clk 0:02:49]} 10. Nxd4 {[%clk 0:02:58]}  Nc5 {[%clk 0:02:48]} 11. Re1 {[%clk 0:02:56]}  Bd7 {[%clk 0:02:47]} 12. f3 {[%clk 0:02:18]}  a5 {[%clk 0:02:37]} 13. Be3 {[%clk 0:02:15]}  h5 {[%clk 0:02:23]} 14. Qd2 {[%clk 0:02:01]}  Nh7 {[%clk 0:02:08]} 15. Rad1 {[%clk 0:01:54]}  Qc8 {[%clk 0:02:00]} 16. Kh2 {[%clk 0:01:53]}  Be5 {[%clk 0:01:50]} 17. f4 {[%clk 0:01:52]}  Bg7 {[%clk 0:01:50]} 18. Bf2 {[%clk 0:01:47]}  Bh6 {[%clk 0:01:13]} 19. Ndb5 {[%clk 0:01:35]}  Ne6 {[%clk 0:01:10]} 20. Be3 {[%clk 0:01:28]}  Bc6 {[%clk 0:00:58]} 21. Nd5 {[%clk 0:01:26]}  Bxb5 {[%clk 0:00:54]} 22. cxb5 {[%clk 0:01:26]}  b6 {[%clk 0:00:54]} 23. e5 {[%clk 0:01:05]}  dxe5 {[%clk 0:00:49]} 24. f5 {[%clk 0:00:48]}  Bxe3 {[%clk 0:00:43]} 25. Qxe3 {[%clk 0:00:45]}  Nd4 {[%clk 0:00:36]} 26. fxg6 {[%clk 0:00:41]}  fxg6 {[%clk 0:00:36]} 27. Rf1 {[%clk 0:00:39]}  Kg7 {[%clk 0:00:31]} 28. Rxd4 {[%clk 0:00:35]}  exd4 {[%clk 0:00:28]} 29. Qxd4+ {[%clk 0:00:35]}  Kh6 {[%clk 0:00:11]} 30. Rf7 {[%clk 0:00:30]}  Qe6 {[%clk 0:00:10]} 31. Qg7+ {[%clk 0:00:27]}  Kg5 {[%clk 0:00:10]} 32. h4+ {[%clk 0:00:27]} 1-0


[Site "https://www.chess.com"]

[Event "Titled Tuesday Blitz June 29 2021"]
[White "erichansen"]
[Black "Oleksandr_Bortnyk"]
[WhiteElo "2929"]
[BlackElo "3017"]
[Result "0-1"]
[Round "05"]
[TimeControl "180+1"]
[Date "2021.06.29"]
[WhiteClock "0:00:04"]
[BlackClock "0:00:06"]

1. e4 {[%clk 0:03:00]}  d6 {[%clk 0:03:00]} 2. d4 {[%clk 0:02:59]}  Nf6 {[%clk 0:03:01]} 3. Nc3 {[%clk 0:02:59]}  Nbd7 {[%clk 0:03:01]} 4. Nf3 {[%clk 0:02:57]}  e5 {[%clk 0:03:02]} 5. Bc4 {[%clk 0:02:58]}  Be7 {[%clk 0:03:02]} 6. O-O {[%clk 0:02:58]}  O-O {[%clk 0:03:03]} 7. a4 {[%clk 0:02:58]}  a6 {[%clk 0:03:03]} 8. Re1 {[%clk 0:02:59]}  b6 {[%clk 0:03:04]} 9. h3 {[%clk 0:02:46]}  Bb7 {[%clk 0:03:04]} 10. d5 {[%clk 0:02:37]}  Re8 {[%clk 0:03:03]} 11. Be3 {[%clk 0:02:34]}  Nf8 {[%clk 0:03:02]} 12. b4 {[%clk 0:02:29]}  Ng6 {[%clk 0:03:00]} 13. Bb3 {[%clk 0:02:28]}  a5 {[%clk 0:02:52]} 14. bxa5 {[%clk 0:02:26]}  Rxa5 {[%clk 0:02:53]} 15. Nd2 {[%clk 0:02:26]}  Ba6 {[%clk 0:02:38]} 16. Nc4 {[%clk 0:02:24]}  Bxc4 {[%clk 0:02:38]} 17. Bxc4 {[%clk 0:02:25]}  Nd7 {[%clk 0:02:37]} 18. Bb5 {[%clk 0:02:26]}  Rf8 {[%clk 0:02:37]} 19. Na2 {[%clk 0:02:19]}  f5 {[%clk 0:02:26]} 20. exf5 {[%clk 0:02:18]}  Rxf5 {[%clk 0:02:27]} 21. Nb4 {[%clk 0:02:19]}  Nb8 {[%clk 0:02:26]} 22. Qg4 {[%clk 0:01:59]}  Rf7 {[%clk 0:02:19]} 23. g3 {[%clk 0:01:57]}  Bf6 {[%clk 0:02:09]} 24. Rad1 {[%clk 0:01:53]}  Ne7 {[%clk 0:02:02]} 25. Kg2 {[%clk 0:01:46]}  Qc8 {[%clk 0:02:00]} 26. Qc4 {[%clk 0:01:39]}  Nd7 {[%clk 0:01:47]} 27. Nc6 {[%clk 0:01:31]}  Nxc6 {[%clk 0:01:44]} 28. dxc6 {[%clk 0:01:30]}  Nf8 {[%clk 0:01:13]} 29. Qb3 {[%clk 0:01:18]}  Ne6 {[%clk 0:01:02]} 30. Bc4 {[%clk 0:01:15]}  Re7 {[%clk 0:00:47]} 31. Bxb6 {[%clk 0:01:15]}  cxb6 {[%clk 0:00:48]} 32. Rxd6 {[%clk 0:01:15]}  Kf7 {[%clk 0:00:48]} 33. Red1 {[%clk 0:00:54]}  Rc5 {[%clk 0:00:47]} 34. Rxe6 {[%clk 0:00:16]}  Rxe6 {[%clk 0:00:48]} 35. Rd7+ {[%clk 0:00:16]}  Ke8 {[%clk 0:00:35]} 36. Bxe6 {[%clk 0:00:16]}  Qxc6+ {[%clk 0:00:35]} 37. Kg1 {[%clk 0:00:15]}  Rxc2 {[%clk 0:00:35]} 38. Rd1 {[%clk 0:00:15]}  Qc5 {[%clk 0:00:32]} 39. Rf1 {[%clk 0:00:04]}  Rc3 {[%clk 0:00:32]} 40. Qb5+ {[%clk 0:00:04]}  Qxb5 {[%clk 0:00:29]} 41. axb5 {[%clk 0:00:05]}  Be7 {[%clk 0:00:23]} 42. Re1 {[%clk 0:00:03]}  Rc5 {[%clk 0:00:23]} 43. Bf5 {[%clk 0:00:03]}  Rxb5 {[%clk 0:00:17]} 44. Bxh7 {[%clk 0:00:03]}  Kf7 {[%clk 0:00:18]} 45. Be4 {[%clk 0:00:03]}  Kf6 {[%clk 0:00:17]} 46. Re2 {[%clk 0:00:03]}  Bc5 {[%clk 0:00:17]} 47. Kg2 {[%clk 0:00:03]}  Bd4 {[%clk 0:00:18]} 48. h4 {[%clk 0:00:04]}  Rb4 {[%clk 0:00:15]} 49. Kf3 {[%clk 0:00:04]}  b5 {[%clk 0:00:14]} 50. Kg4 {[%clk 0:00:04]}  Ke6 {[%clk 0:00:10]} 51. Rc2 {[%clk 0:00:04]}  Bxf2 {[%clk 0:00:10]} 52. Kf3 {[%clk 0:00:02]}  Bxg3 {[%clk 0:00:10]} 53. Rc6+ {[%clk 0:00:02]}  Kd7 {[%clk 0:00:10]} 54. Rg6 {[%clk 0:00:02]}  Bxh4 {[%clk 0:00:10]} 55. Rxg7+ {[%clk 0:00:03]}  Be7 {[%clk 0:00:11]} 56. Rg6 {[%clk 0:00:03]}  Rc4 {[%clk 0:00:08]} 57. Rb6 {[%clk 0:00:02]}  b4 {[%clk 0:00:08]} 58. Bd3 {[%clk 0:00:03]}  Rf4+ {[%clk 0:00:07]} 59. Ke2 {[%clk 0:00:03]}  Bc5 {[%clk 0:00:08]} 60. Rg6 {[%clk 0:00:03]}  Rf2+ {[%clk 0:00:07]} 61. Kd1 {[%clk 0:00:04]}  b3 {[%clk 0:00:08]} 62. Bb5+ {[%clk 0:00:03]}  Ke7 {[%clk 0:00:07]} 63. Rc6 {[%clk 0:00:04]}  b2 {[%clk 0:00:06]} 64. Bd3 {[%clk 0:00:04]}  Bb4 {[%clk 0:00:06]} 65. Bh7 {[%clk 0:00:04]}  Rd2+ {[%clk 0:00:06]} 0-1


[Site "https://www.chess.com"]

[Event "Titled Tuesday Blitz June 29 2021"]
[White "seorobert1971"]
[Black "MarcoRiehle"]
[WhiteElo "2778"]
[BlackElo "2610"]
[Result "1-0"]
[Round "05"]
[TimeControl "180+1"]
[Date "2021.06.29"]
[WhiteClock "0:01:06"]
[BlackClock "0:00:30"]

1. Nf3 {[%clk 0:03:00]}  c5 {[%clk 0:02:57]} 2. b3 {[%clk 0:03:01]}  Nc6 {[%clk 0:02:57]} 3. Bb2 {[%clk 0:03:02]}  f6 {[%clk 0:02:57]} 4. e4 {[%clk 0:03:01]}  e5 {[%clk 0:02:56]} 5. Bc4 {[%clk 0:03:01]}  Nge7 {[%clk 0:02:56]} 6. Nc3 {[%clk 0:03:01]}  Nd4 {[%clk 0:02:56]} 7. Nd5 {[%clk 0:03:00]}  Nxd5 {[%clk 0:02:56]} 8. Bxd5 {[%clk 0:02:59]}  d6 {[%clk 0:02:56]} 9. Nxd4 {[%clk 0:02:58]}  cxd4 {[%clk 0:02:56]} 10. c3 {[%clk 0:02:58]}  dxc3 {[%clk 0:02:51]} 11. dxc3 {[%clk 0:02:58]}  Qb6 {[%clk 0:02:45]} 12. O-O {[%clk 0:02:57]}  Bd7 {[%clk 0:02:45]} 13. Qd3 {[%clk 0:02:53]}  Bc6 {[%clk 0:02:40]} 14. Be6 {[%clk 0:02:53]}  Bd7 {[%clk 0:02:38]} 15. Bxd7+ {[%clk 0:02:52]}  Kxd7 {[%clk 0:02:39]} 16. c4 {[%clk 0:02:52]}  Rd8 {[%clk 0:02:37]} 17. Rfd1 {[%clk 0:02:49]}  Kc8 {[%clk 0:02:37]} 18. Rac1 {[%clk 0:02:48]}  Be7 {[%clk 0:02:35]} 19. Qh3+ {[%clk 0:02:42]}  Kb8 {[%clk 0:02:28]} 20. Qe6 {[%clk 0:02:40]}  Qc7 {[%clk 0:02:29]} 21. Rd3 {[%clk 0:02:36]}  Qd7 {[%clk 0:02:25]} 22. Qd5 {[%clk 0:02:34]}  Qc6 {[%clk 0:02:22]} 23. Rcd1 {[%clk 0:02:34]}  Qxd5 {[%clk 0:02:21]} 24. Rxd5 {[%clk 0:02:34]}  Rd7 {[%clk 0:02:21]} 25. Ba3 {[%clk 0:02:34]}  Rhd8 {[%clk 0:02:22]} 26. Kf1 {[%clk 0:02:33]}  b6 {[%clk 0:02:19]} 27. Ke2 {[%clk 0:02:32]}  Kc7 {[%clk 0:02:19]} 28. Bc1 {[%clk 0:02:32]}  Kc6 {[%clk 0:02:18]} 29. a4 {[%clk 0:02:31]}  g6 {[%clk 0:02:18]} 30. Be3 {[%clk 0:02:28]}  f5 {[%clk 0:02:17]} 31. f3 {[%clk 0:02:29]}  Rb7 {[%clk 0:02:07]} 32. h3 {[%clk 0:02:25]}  Rf8 {[%clk 0:01:59]} 33. g4 {[%clk 0:02:23]}  f4 {[%clk 0:01:58]} 34. Bf2 {[%clk 0:02:23]}  h6 {[%clk 0:01:58]} 35. h4 {[%clk 0:02:22]}  Ra8 {[%clk 0:01:53]} 36. Rh1 {[%clk 0:02:21]}  a6 {[%clk 0:01:51]} 37. h5 {[%clk 0:02:20]}  g5 {[%clk 0:01:51]} 38. Rc1 {[%clk 0:02:19]}  Bf8 {[%clk 0:01:49]} 39. b4 {[%clk 0:02:18]}  Be7 {[%clk 0:01:46]} 40. Rcd1 {[%clk 0:02:14]}  b5 {[%clk 0:01:44]} 41. cxb5+ {[%clk 0:02:12]}  axb5 {[%clk 0:01:43]} 42. a5 {[%clk 0:02:12]}  Kd7 {[%clk 0:01:44]} 43. Bc5 {[%clk 0:02:06]}  Ra6 {[%clk 0:01:42]} 44. Bb6 {[%clk 0:02:06]}  Rb8 {[%clk 0:01:39]} 45. Rxb5 {[%clk 0:02:03]}  Bd8 {[%clk 0:01:36]} 46. Rbd5 {[%clk 0:02:01]}  Bxb6 {[%clk 0:01:36]} 47. Rxd6+ {[%clk 0:02:01]}  Ke7 {[%clk 0:01:37]} 48. axb6 {[%clk 0:01:59]}  Rbxb6 {[%clk 0:01:33]} 49. Rd7+ {[%clk 0:01:47]}  Ke6 {[%clk 0:01:30]} 50. Rh7 {[%clk 0:01:45]}  Ra2+ {[%clk 0:01:30]} 51. Rd2 {[%clk 0:01:44]}  Rxd2+ {[%clk 0:01:29]} 52. Kxd2 {[%clk 0:01:45]}  Rxb4 {[%clk 0:01:30]} 53. Rxh6+ {[%clk 0:01:45]}  Kf7 {[%clk 0:01:30]} 54. Rg6 {[%clk 0:01:45]}  Rb2+ {[%clk 0:01:31]} 55. Kd3 {[%clk 0:01:43]}  Rf2 {[%clk 0:01:31]} 56. Rxg5 {[%clk 0:01:42]}  Rxf3+ {[%clk 0:01:31]} 57. Kc4 {[%clk 0:01:41]}  Kf6 {[%clk 0:01:24]} 58. Rg6+ {[%clk 0:01:36]}  Kf7 {[%clk 0:01:24]} 59. Kd5 {[%clk 0:01:36]}  Rg3 {[%clk 0:01:20]} 60. Kxe5 {[%clk 0:01:26]}  f3 {[%clk 0:01:21]} 61. Rg5 {[%clk 0:01:26]}  f2 {[%clk 0:01:18]} 62. Rf5+ {[%clk 0:01:26]}  Kg7 {[%clk 0:01:17]} 63. Rxf2 {[%clk 0:01:26]}  Rxg4 {[%clk 0:01:18]} 64. Rf5 {[%clk 0:01:23]}  Rg1 {[%clk 0:01:11]} 65. Ke6 {[%clk 0:01:23]}  Ra1 {[%clk 0:01:11]} 66. Rg5+ {[%clk 0:01:18]}  Kh6 {[%clk 0:01:10]} 67. Rg2 {[%clk 0:01:17]}  Kxh5 {[%clk 0:01:06]} 68. e5 {[%clk 0:01:17]}  Ra8 {[%clk 0:00:40]} 69. Kf7 {[%clk 0:01:15]}  Ra7+ {[%clk 0:00:40]} 70. Kf6 {[%clk 0:01:15]}  Kh4 {[%clk 0:00:38]} 71. e6 {[%clk 0:01:15]}  Ra6 {[%clk 0:00:39]} 72. Kf7 {[%clk 0:01:14]}  Kh3 {[%clk 0:00:40]} 73. Rg8 {[%clk 0:01:13]}  Ra1 {[%clk 0:00:37]} 74. e7 {[%clk 0:01:12]}  Rf1+ {[%clk 0:00:37]} 75. Ke8 {[%clk 0:01:11]}  Kh4 {[%clk 0:00:37]} 76. Rg6 {[%clk 0:01:11]}  Kh5 {[%clk 0:00:37]} 77. Rd6 {[%clk 0:01:10]}  Kg4 {[%clk 0:00:30]} 78. Kd7 {[%clk 0:01:10]}  Rf2 {[%clk 0:00:30]} 79. e8=Q {[%clk 0:01:08]}  Kg3 {[%clk 0:00:31]} 80. Qg6+ {[%clk 0:01:08]}  Kh2 {[%clk 0:00:30]} 81. Qh5+ {[%clk 0:01:07]}  Kg2 {[%clk 0:00:29]} 82. Rg6+ {[%clk 0:01:06]}  Kf1 {[%clk 0:00:30]} 83. Qd1# {[%clk 0:01:06]} 1-0


[Site "https://www.chess.com"]

[Event "Titled Tuesday Blitz June 29 2021"]
[White "viditchess"]
[Black "Sanan_Sjugirov"]
[WhiteElo "3061"]
[BlackElo "2951"]
[Result "1-0"]
[Round "05"]
[TimeControl "180+1"]
[Date "2021.06.29"]
[WhiteClock "0:00:04"]
[BlackClock "0:00:04"]

1. Nf3 {[%clk 0:03:00]}  d5 {[%clk 0:02:58]} 2. g3 {[%clk 0:02:59]}  Bg4 {[%clk 0:02:57]} 3. Bg2 {[%clk 0:02:59]}  Nd7 {[%clk 0:02:57]} 4. h3 {[%clk 0:02:57]}  Bh5 {[%clk 0:02:53]} 5. O-O {[%clk 0:02:56]}  c6 {[%clk 0:02:51]} 6. d3 {[%clk 0:02:53]}  Ngf6 {[%clk 0:02:49]} 7. Qe1 {[%clk 0:02:51]}  e5 {[%clk 0:02:45]} 8. e4 {[%clk 0:02:51]}  Bd6 {[%clk 0:02:41]} 9. Nh4 {[%clk 0:02:46]}  O-O {[%clk 0:02:40]} 10. Nc3 {[%clk 0:02:43]}  dxe4 {[%clk 0:02:35]} 11. Nxe4 {[%clk 0:02:36]}  Be7 {[%clk 0:02:22]} 12. Nf5 {[%clk 0:02:33]}  Bg6 {[%clk 0:02:10]} 13. Nxe7+ {[%clk 0:02:32]}  Qxe7 {[%clk 0:02:11]} 14. Bd2 {[%clk 0:02:32]}  Nd5 {[%clk 0:01:51]} 15. Nc3 {[%clk 0:02:18]}  Nxc3 {[%clk 0:01:50]} 16. Bxc3 {[%clk 0:02:18]}  Rfe8 {[%clk 0:01:49]} 17. Qe3 {[%clk 0:02:12]}  Qd6 {[%clk 0:01:41]} 18. Rae1 {[%clk 0:01:52]}  f6 {[%clk 0:01:41]} 19. f4 {[%clk 0:01:46]}  exf4 {[%clk 0:01:19]} 20. Qxf4 {[%clk 0:01:47]}  Qxf4 {[%clk 0:01:13]} 21. gxf4 {[%clk 0:01:48]}  Bf7 {[%clk 0:01:08]} 22. a4 {[%clk 0:01:42]}  Nb6 {[%clk 0:01:01]} 23. b3 {[%clk 0:01:18]}  Bd5 {[%clk 0:01:00]} 24. Be4 {[%clk 0:01:01]}  Bxe4 {[%clk 0:01:00]} 25. dxe4 {[%clk 0:01:01]}  Nd7 {[%clk 0:01:01]} 26. Kg2 {[%clk 0:00:59]}  Nc5 {[%clk 0:00:58]} 27. Kf3 {[%clk 0:00:59]}  Rad8 {[%clk 0:00:57]} 28. Re2 {[%clk 0:00:56]}  Kf7 {[%clk 0:00:55]} 29. Rg1 {[%clk 0:00:50]}  Rd7 {[%clk 0:00:33]} 30. h4 {[%clk 0:00:42]}  Ne6 {[%clk 0:00:13]} 31. Reg2 {[%clk 0:00:40]}  Rg8 {[%clk 0:00:12]} 32. h5 {[%clk 0:00:36]}  Nd4+ {[%clk 0:00:10]} 33. Ke3 {[%clk 0:00:34]}  Ne6 {[%clk 0:00:08]} 34. a5 {[%clk 0:00:27]}  a6 {[%clk 0:00:08]} 35. b4 {[%clk 0:00:15]}  Rdd8 {[%clk 0:00:08]} 36. Rg3 {[%clk 0:00:11]}  Rde8 {[%clk 0:00:06]} 37. R1g2 {[%clk 0:00:11]}  Nc7 {[%clk 0:00:04]} 38. Kf3 {[%clk 0:00:11]}  Nb5 {[%clk 0:00:04]} 39. Bb2 {[%clk 0:00:10]}  Nd6 {[%clk 0:00:05]} 40. Re2 {[%clk 0:00:07]}  f5 {[%clk 0:00:02]} 41. exf5 {[%clk 0:00:04]}  Rxe2 {[%clk 0:00:02]} 42. Kxe2 {[%clk 0:00:05]}  Nxf5 {[%clk 0:00:02]} 43. Rd3 {[%clk 0:00:06]}  Re8+ {[%clk 0:00:02]} 44. Be5 {[%clk 0:00:05]}  Re7 {[%clk 0:00:02]} 45. Kf3 {[%clk 0:00:06]}  Ke6 {[%clk 0:00:01]} 46. c4 {[%clk 0:00:05]}  g6 {[%clk 0:00:01]} 47. hxg6 {[%clk 0:00:04]}  hxg6 {[%clk 0:00:02]} 48. Kg4 {[%clk 0:00:05]}  Rh7 {[%clk 0:00:02]} 49. Kg5 {[%clk 0:00:04]}  Ne7 {[%clk 0:00:03]} 50. Rd6+ {[%clk 0:00:04]}  Kf7 {[%clk 0:00:03]} 51. Rd7 {[%clk 0:00:04]}  Rh5+ {[%clk 0:00:03]} 52. Kg4 {[%clk 0:00:04]}  Ke6 {[%clk 0:00:03]} 53. Rxb7 {[%clk 0:00:04]}  Nf5 {[%clk 0:00:04]} 54. Rb6 {[%clk 0:00:04]}  Rh4+ {[%clk 0:00:04]} 55. Kg5 {[%clk 0:00:04]}  Kf7 {[%clk 0:00:04]} 56. Rb7+ {[%clk 0:00:04]}  Ke6 {[%clk 0:00:05]} 57. Kxg6 {[%clk 0:00:04]}  Rg4+ {[%clk 0:00:05]} 58. Kh7 {[%clk 0:00:04]}  Ne3 {[%clk 0:00:04]} 59. Rg7 {[%clk 0:00:04]}  Rh4+ {[%clk 0:00:04]} 60. Kg8 {[%clk 0:00:02]}  Nxc4 {[%clk 0:00:05]} 61. Bc7 {[%clk 0:00:02]}  Ne3 {[%clk 0:00:04]} 62. Bd8 {[%clk 0:00:02]}  Rxf4 {[%clk 0:00:03]} 63. Re7+ {[%clk 0:00:02]}  Kd5 {[%clk 0:00:04]} 64. Rxe3 {[%clk 0:00:03]}  Rxb4 {[%clk 0:00:04]} 65. Bb6 {[%clk 0:00:03]}  c5 {[%clk 0:00:04]} 66. Kf7 {[%clk 0:00:03]}  c4 {[%clk 0:00:05]} 67. Kf6 {[%clk 0:00:02]}  Rb3 {[%clk 0:00:05]} 68. Re5+ {[%clk 0:00:03]}  Kd6 {[%clk 0:00:05]} 69. Re6+ {[%clk 0:00:03]}  Kd5 {[%clk 0:00:05]} 70. Re5+ {[%clk 0:00:03]}  Kd6 {[%clk 0:00:05]} 71. Rc5 {[%clk 0:00:03]}  Rf3+ {[%clk 0:00:02]} 72. Kg5 {[%clk 0:00:03]}  c3 {[%clk 0:00:03]} 73. Kg4 {[%clk 0:00:03]}  Rd3 {[%clk 0:00:03]} 74. Kf4 {[%clk 0:00:03]}  Rh3 {[%clk 0:00:01]} 75. Ke4 {[%clk 0:00:03]}  Ke6 {[%clk 0:00:01]} 76. Rc6+ {[%clk 0:00:03]}  Kd7 {[%clk 0:00:01]} 77. Rc5 {[%clk 0:00:04]}  Kd6 {[%clk 0:00:01]} 78. Kd4 {[%clk 0:00:04]}  Kd7 {[%clk 0:00:02]} 79. Kc4 {[%clk 0:00:03]}  Kd6 {[%clk 0:00:02]} 80. Kb3 {[%clk 0:00:02]}  Kd7 {[%clk 0:00:01]} 81. Rc4 {[%clk 0:00:03]}  Kd6 {[%clk 0:00:02]} 82. Bd4 {[%clk 0:00:03]}  Kd5 {[%clk 0:00:02]} 83. Bxc3 {[%clk 0:00:03]}  Rh1 {[%clk 0:00:02]} 84. Rc7 {[%clk 0:00:03]}  Rb1+ {[%clk 0:00:01]} 85. Bb2 {[%clk 0:00:03]}  Rf1 {[%clk 0:00:02]} 86. Ra7 {[%clk 0:00:03]}  Rf4 {[%clk 0:00:02]} 87. Rxa6 {[%clk 0:00:03]}  Rf3+ {[%clk 0:00:03]} 88. Bc3 {[%clk 0:00:03]}  Kc5 {[%clk 0:00:04]} 89. Rb6 {[%clk 0:00:04]} 1-0


[Site "https://www.chess.com"]

[Event "Titled Tuesday Blitz June 29 2021"]
[White "AlexOstrovskiy"]
[Black "Steven_Rojas"]
[WhiteElo "2776"]
[BlackElo "2531"]
[Result "1-0"]
[Round "06"]
[TimeControl "180+1"]
[Date "2021.06.29"]
[WhiteClock "0:00:19"]
[BlackClock "0:00:03"]

1. d4 {[%clk 0:03:00]}  d5 {[%clk 0:02:58]} 2. Bf4 {[%clk 0:03:01]}  Nf6 {[%clk 0:02:57]} 3. e3 {[%clk 0:03:02]}  e6 {[%clk 0:02:56]} 4. Nd2 {[%clk 0:03:02]}  Bd6 {[%clk 0:02:56]} 5. Bg3 {[%clk 0:03:02]}  O-O {[%clk 0:02:53]} 6. Bd3 {[%clk 0:03:01]}  c5 {[%clk 0:02:52]} 7. c3 {[%clk 0:02:59]}  Nc6 {[%clk 0:02:52]} 8. Ngf3 {[%clk 0:02:58]}  b6 {[%clk 0:02:51]} 9. e4 {[%clk 0:02:57]}  Be7 {[%clk 0:02:49]} 10. e5 {[%clk 0:02:55]}  Nh5 {[%clk 0:02:49]} 11. Ng5 {[%clk 0:02:54]}  Bxg5 {[%clk 0:02:12]} 12. Qxh5 {[%clk 0:02:53]}  g6 {[%clk 0:02:12]} 13. Qe2 {[%clk 0:02:53]}  cxd4 {[%clk 0:01:49]} 14. h4 {[%clk 0:02:53]}  Bh6 {[%clk 0:01:48]} 15. h5 {[%clk 0:02:51]}  dxc3 {[%clk 0:01:44]} 16. bxc3 {[%clk 0:02:52]}  Bg7 {[%clk 0:01:36]} 17. Nf3 {[%clk 0:02:48]}  d4 {[%clk 0:01:20]} 18. Be4 {[%clk 0:02:41]}  Bb7 {[%clk 0:01:15]} 19. Rd1 {[%clk 0:02:41]}  Qe7 {[%clk 0:01:13]} 20. cxd4 {[%clk 0:02:39]}  Nb4 {[%clk 0:01:09]} 21. Bxb7 {[%clk 0:02:08]}  Qxb7 {[%clk 0:01:10]} 22. h6 {[%clk 0:02:06]}  Bh8 {[%clk 0:01:09]} 23. O-O {[%clk 0:02:04]}  Rfc8 {[%clk 0:00:58]} 24. Rd2 {[%clk 0:02:03]}  Nd5 {[%clk 0:00:57]} 25. Ng5 {[%clk 0:02:02]}  Rc3 {[%clk 0:00:46]} 26. Ne4 {[%clk 0:02:01]}  Rc6 {[%clk 0:00:41]} 27. Nd6 {[%clk 0:01:59]}  Qe7 {[%clk 0:00:37]} 28. Qg4 {[%clk 0:01:55]}  Qf8 {[%clk 0:00:28]} 29. Qh4 {[%clk 0:01:37]}  Qd8 {[%clk 0:00:26]} 30. Qg4 {[%clk 0:01:33]}  Qf8 {[%clk 0:00:26]} 31. Qh3 {[%clk 0:01:27]}  f5 {[%clk 0:00:20]} 32. a4 {[%clk 0:00:49]}  Nc3 {[%clk 0:00:20]} 33. Re1 {[%clk 0:00:41]}  Rd8 {[%clk 0:00:20]} 34. Bf4 {[%clk 0:00:38]}  Nxa4 {[%clk 0:00:20]} 35. Ra2 {[%clk 0:00:32]}  b5 {[%clk 0:00:20]} 36. Nxb5 {[%clk 0:00:31]}  Qb4 {[%clk 0:00:18]} 37. Rea1 {[%clk 0:00:24]}  Qxb5 {[%clk 0:00:15]} 38. Rxa4 {[%clk 0:00:24]}  a6 {[%clk 0:00:14]} 39. Qa3 {[%clk 0:00:21]}  Re8 {[%clk 0:00:06]} 40. Ra5 {[%clk 0:00:19]}  Qb7 {[%clk 0:00:06]} 41. Be3 {[%clk 0:00:20]}  Rd8 {[%clk 0:00:04]} 42. Qa2 {[%clk 0:00:20]}  Ra8 {[%clk 0:00:02]} 43. Rb1 {[%clk 0:00:20]}  Qd7 {[%clk 0:00:01]} 44. Ra4 {[%clk 0:00:18]}  Qf7 {[%clk 0:00:01]} 45. Rab4 {[%clk 0:00:18]}  Rcc8 {[%clk 0:00:02]} 46. Rb7 {[%clk 0:00:18]}  Bg7 {[%clk 0:00:02]} 47. Rxf7 {[%clk 0:00:19]}  Kxf7 {[%clk 0:00:03]} 48. Rb7+ {[%clk 0:00:19]}  Rc7 {[%clk 0:00:03]} 49. Rxc7+ {[%clk 0:00:19]}  Ke8 {[%clk 0:00:03]} 50. Qxe6+ {[%clk 0:00:19]} 1-0


[Site "https://www.chess.com"]